Workbook

Sheet 第二批发放名单
A1: 2022年新站高新区第二批批零住餐旅游业稳岗补贴发放汇总表
A2: 序号 | B2: 单位名称 | C2: 统一社会信用代码 | D2: 开户名 | E2: 开户行 | F2: 开户账号 | G2: 平均参保人数 | H2: 审核金额（元） | I2: 失业稳岗返还金额（元） | J2: 发放金额（元） | K2: 备注
A3: 1 | B3: 合肥丰源雷克萨斯汽车销售服务有限公司 | C3: 913401007627795752 | D3: 合肥丰源雷克萨斯汽车销售服务有限公司 | E3: 工商银行合肥市临泉路支行 | F3: 1302025109000027924 | G3: 61 | H3: =G3*2000 -> 122000 | I3: 23972.04 | J3: =SUM(H3-I3) -> 98027.96
A4: 2 | B4: 合肥吉佳电器有限公司 | C4: 91340100397146998F | D4: 合肥吉佳电器有限公司 | E4: 徽商银行股份有限公司合肥和平路支行 | F4: 1023301021000577508 | G4: 7 | H4: =G4*2000 -> 14000 | I4: 2466.36 | J4: =SUM(H4-I4) -> 11533.64
A5: 3 | B5: 安徽九特龙服饰有限公司 | C5: 91340100774997350R | D5: 安徽九特龙服饰有限公司 | E5: 工商银行合肥市瑶海工业园支行 | F5: 1302043819200003154 | G5: 8 | H5: 16000 | I5: 3364.61 | J5: 12635.39
A6: 4 | B6: 合肥七哥食品有限责任公司 | C6: 91340100689782785P | D6: 合肥七哥食品有限责任公司 | E6: 建设银行合肥龙门支行 | F6: 34050144770800001236 | G6: 72 | H6: 144000 | I6: 27506.24 | J6: 116493.76
A7: 5 | B7: 安徽金悦徽情餐饮管理有限公司 | C7: 91340100798116263H | D7: 安徽金悦徽情餐饮管理有限公司 | E7: 交通银行合肥新站支行 | F7: 341305000018010027109 | G7: 36 | H7: 72000 | I7: 14008.32 | J7: 57991.68
A8: 6 | B8: 上海华润万家超市有限公司合肥铜陵北路分公司 | C8: 91340100MA2W9CY67P | D8: 上海华润万家超市有限公司合肥铜陵北路分公司 | E8: 中国农业银行股份有限公司合肥瑶海区支行 | F8: 12088001040048889 | G8: 98 | H8: 196000 | I8: 44270.5 | J8: 151729.5
A9: 7 | B9: 合肥辰之运贸易有限公司 | C9: 91340100MA2MYRYL8P | D9: 合肥辰之运贸易有限公司 | E9: 中国工商银行合肥瑶海工业园支行 | F9: 1302043809100018882 | G9: 125 | H9: 250000 | I9: 33787.95 | J9: 216212.05
A10: 8 | B10: 安徽惠风汽车销售有限责任公司 | C10: 9134010071177204XR | D10: 安徽惠风汽车销售有限责任公司 | E10: 工商银行安徽省合肥市庐东支行 | F10: 1302212119200030357 | G10: 86 | H10: 172000 | I10: 28748.88 | J10: 143251.12
A11: 9 | B11: 安徽惠和汽车服务有限公司 | C11: 91340100740891021U | D11: 安徽惠和汽车服务有限公司 | E11: 工商银行安徽省合肥市淮河路支行 | F11: 1302010419200018308 | G11: 67 | H11: 134000 | I11: 24503.2 | J11: 109496.8
A12: 10 | B12: 安徽世贸汽车销售服务有限公司 | C12: 9134010075852713XA | D12: 安徽世贸汽车销售服务有限公司 | E12: 工商银行安徽省合肥市淮河路支行 | F12: 1302010419200039394 | G12: 66 | H12: 132000 | I12: 25395.39 | J12: 106604.61
A13: 11 | B13: 安徽省双安安全防护装备有限公司 | C13: 91340100683625471Q | D13: 安徽省双安安全防护装备有限公司 | E13: 徽商银行合肥蜀山支行 | F13: 1023701021000302821 | G13: 34 | H13: 68000 | I13: 13056.79 | J13: 54943.21
A14: 12 | B14: 安徽省双安消防设备有限公司 | C14: 9134010068496167XT | D14: 安徽省双安消防设备有限公司 | E14: 徽商银行合肥蜀山支行 | F14: 1023701021000310605 | G14: 17 | H14: 34000 | I14: 5929.98 | J14: 28070.02
A15: 13 | B15: 安徽省峰泰千禧大酒店有限公司 | C15: 9134010033566014X6 | D15: 安徽省峰泰千禧大酒店有限公司 | E15: 中信银行徽州大道支行 | F15: 7350110182600053714 | G15: 15 | H15: 30000 | I15: 0 | J15: 30000
A16: 14 | B16: 安徽省峰泰控股集团有限公司 | C16: 91340100149112975B | D16: 安徽省峰泰控股集团有限公司 | E16: 合肥科技农村商业银行七里塘支行 | F16: 20000004876510300000018 | G16: 11 | H16: 22000 | I16: 4790.33 | J16: 17209.67
A17: 15 | B17: 安徽安天服饰有限责任公司 | C17: 91340100719986237B | D17: 安徽安天服饰有限责任公司 | E17: 徽商银行合肥天鹅湖支行 | F17: 2391012010040665 | G17: 15 | H17: 30000 | I17: 8632.44 | J17: 21367.56
A18: 16 | B18: 合肥品尚多商贸有限公司 | C18: 91340100MA2UAMUW5D | D18: 合肥品尚多商贸有限公司 | E18: 安徽肥东农村商业银行股份有限公司王铁支行 | F18: 20010083451066600000019 | G18: 15 | H18: 30000 | I18: 2873.32 | J18: 27126.68
A19: 17 | B19: 安徽南亚工程机械有限公司 | C19: 91340100754863881H | D19: 安徽南亚工程机械有限公司 | E19: 安徽肥西农村商业银行烟墩支行 | F19: 20000103335610300000083 | G19: 103 | H19: 206000 | I19: 0 | J19: 206000
A20: 18 | B20: 合肥众国泓威汽车销售服务有限公司 | C20: 91340100MA2NCL5G7M | D20: 合肥众国泓威汽车销售服务有限公司 | E20: 中国建设银行股份有限公司合肥龙门支行 | F20: 34050144770800000534 | G20: 30 | H20: 60000 | I20: 12185 | J20: 47815
A21: 19 | B21: 合肥众国泓通汽车销售服务有限公司 | C21: 91340100MA2NCLP89R | D21: 合肥众国泓通汽车销售服务有限公司 | E21: 中国建设银行股份有限公司合肥龙门支行 | F21: 34050144770800000535 | G21: 43 | H21: 86000 | I21: 16162.87 | J21: 69837.13
A22: 20 | B22: 安徽先创电器销售有限公司 | C22: 91340100MA2MXJ1RXY | D22: 安徽先创电器销售有限公司 | E22: 中国建设银行股份有限公司合肥龙门支行 | F22: 34050144770800000182 | G22: 33 | H22: 66000 | I22: 10169.66 | J22: 55830.34
A23: 21 | B23: 安徽云健康投资管理有限公司 | C23: 91340100394421384H | D23: 安徽云健康投资管理有限公司 | E23: 中国工商银行股份有限公司长江东路支行 | F23: 1302010209300022746 | G23: 24 | H23: 48000 | I23: 8288.19 | J23: 39711.81
A24: 22 | B24: 吉野家（安徽）餐饮有限公司 | C24: 91340100MA2U8H0677 | D24: 吉野家（安徽）餐饮有限公司 | E24: 中国银行合肥站北支行 | F24: 188754881453 | G24: 65 | H24: 130000 | I24: 22336.9 | J24: 107663.1
A25: 23 | B25: 安徽启畅汽车销售服务有限公司 | C25: 91340100MA2TK4Y70H | D25: 安徽启畅汽车销售服务有限公司 | E25: 中国工商银行合肥东七支行 | F25: 1302013409200057501 | G25: 35 | H25: 70000 | I25: 13392.57 | J25: 56607.43
A26: 24 | B26: 安徽岸香国际企业管理有限公司合肥生态公园店 | C26: 91340100077245807J | D26: 安徽岸香国际企业管理有限公司合肥生态公园店 | E26: 中国建设银行股份有限公司合肥龙门支行 | F26: 34001447708052507295 | G26: 8 | H26: 16000 | I26: 3280.96 | J26: 12719.04
A27: 25 | B27: 安徽岸香贸易有限公司 | C27: 913401005744350897 | D27: 安徽岸香贸易有限公司 | E27: 兴业银行合肥分行营业部 | F27: 499010100101451061 | G27: 16 | H27: 32000 | I27: 6208.49 | J27: 25791.51
A28: 26 | B28: 安徽岸香国际企业管理有限公司 | C28: 913401006808173984 | D28: 安徽岸香国际企业管理有公司 | E28: 交通银行合肥市花园街支行 | F28: 341310000018010129538 | G28: 230 | H28: 460000 | I28: 61872.76 | J28: 398127.24
A29: 27 | B29: 安徽环江贸易有限公司 | C29: 91340100090798481K | D29: 安徽环江贸易有限公司 | E29: 浦发银行合肥瑶海支行 | F29: 58040154740003300 | G29: 5 | H29: 10000 | I29: 5485.2 | J29: 4514.8
A30: 28 | B30: 合肥华逸通丰田汽车销售服务有限公司 | C30: 91340100MA2WATY18J | D30: 合肥华逸通丰田汽车销售服务有限公司 | E30: 中国工商银行股份有限公司合肥瑶海工业园支行 | F30: 1302043809100070978 | G30: 44 | H30: 88000 | I30: 9066.89 | J30: 78933.11
A31: 29 | B31: 合肥秀奇服装设备有限公司 | C31: 91340100051458679X | D31: 合肥秀奇服装设备有限公司 | E31: 农行合肥龙门支行 | F31: 12088101040004526 | G31: 17 | H31: 34000 | I31: 8021.39 | J31: 25978.61
A32: 30 | B32: 合肥名邦车业有限公司 | C32: 91340100713944837T | D32: 合肥名邦车业有限公司 | E32: 中国农业银行股份有限公司合肥瑶海区支行 | F32: 12088001040006580 | G32: 69 | H32: 138000 | I32: 25187.65 | J32: 112812.35
A33: 31 | B33: 合肥时尚工贸有限公司 | C33: 913401007529892886 | D33: 合肥时尚工贸有限公司 | E33: 徽商银行濉溪路支行 | F33: 2241012010024453 | G33: 36 | H33: 72000 | I33: 12346.33 | J33: 59653.67
A34: 32 | B34: 安徽稻芗粮油有限公司 | C34: 91340100MA2WH4BF66 | D34: 安徽稻芗粮油有限公司 | E34: 中国银行合肥瑶海支行 | F34: 188759735745 | G34: 4 | H34: 8000 | I34: 679.14 | J34: 7320.86
A35: 33 | B35: 安徽盛世欣兴格力贸易有限公司 | C35: 913401005757279135 | D35: 安徽盛世欣兴格力贸易有限公司 | E35: 徽商银行合肥铜陵北路支行 | F35: 1023401021000630212 | G35: 656 | H35: 500000 | I35: 143921.67 | J35: 356078.33
A36: 34 | B36: 安徽长久电器服务有限公司 | C36: 913401006957156770 | D36: 安徽长久电器服务有限公司 | E36: 徽商银行合肥铜陵北路支行 | F36: 1023401021000484916 | G36: 179 | H36: =G36*2000 -> 358000 | I36: 71402.27 | J36: 286597.73
A37: 35 | B37: 安徽赫速汽车销售服务有限公司 | C37: 91340100MA2WB1MD92 | D37: 安徽赫速汽车销售服务有限公司 | E37: 中国建设银行合肥新客站支行 | F37: 34050144570800001758 | G37: 16 | H37: =G37*2000 -> 32000 | I37: 4024.09 | J37: 27975.91
A38: 36 | B38: 安徽环仁智能科技有限公司 | C38: 91340100674212878H | D38: 安徽环仁智能科技有限公司 | E38: 中国农业银行合肥市临泉路支行 | F38: 12084101040008638 | G38: 5 | H38: 10000 | I38: 2933.4 | J38: 7066.6
A39: 合计 | G39: =SUM(G3:G38) -> 2351 | H39: =SUM(H3:H38) -> 3890000 | I39: =SUM(I3:I38) -> 700271.78 | J39: =SUM(J3:J38) -> 3189728.22
